bitfinex/quotes_SOLUSD_20250517
["timestamp","ask_amount","ask_price","bid_price","bid_amount"]
[1747521292773,10.33190993,165.08,165.02,6.05987153]
[1747521293996,16.38953303,165.09,165.02,6.05987153]
[1747521296596,10.33190993,165.08,165.02,6.05987153]
[1747521297458,6.05656834,165.11,165.02,6.05987153]
[1747521297653,10.33190993,165.09,165.02,6.05987153]
[1747521298868,16.38957893,165.08,165.01,32.06013653]
[1747521300383,18.64964886,165.1,165.01,32.06013653]
[1747521300585,10.33190993,165.08,165.01,32.06013653]
[1747521303070,6.05803598,165.07,165.01,32.06013653]
[1747521304494,6.05803598,165.07,165.0,26.06058397]
[1747521304678,10.33190993,165.05,164.99,6.06082709]
[1747521304875,10.33190993,165.05,164.98,6.06119376]
[1747521305076,10.33190993,165.06,164.98,6.06119376]
[1747521305987,6.05877006,165.05,164.98,6.06119376]
[1747521306193,6.05877006,165.05,164.98,26.06119376]
[1747521306394,37.83900993,165.09,164.98,27.27306349]
[1747521306575,6.05730207,165.09,165.01,26.0]
[1747521307784,6.05730207,165.09,165.02,6.05987153]
[1747521309295,26.07705914,165.1,165.02,6.05987153]
[1747521309494,6.05667967,165.11,165.03,2.80739054]
[1747521309709,6.05667967,165.11,165.03,8.96359054]
[1747521309887,6.05667967,165.11,165.04,26.05913717]
[1747521315721,16.3885896,165.11,165.04,20.0]
[1747521317114,6.05667967,165.11,165.04,26.0591091]
[1747521317820,16.38824068,165.12,165.04,27.27056569]
[1747521318012,6.05633075,165.12,165.04,27.27056569]
[1747521318813,16.38824068,165.12,165.04,27.27056569]
[1747521322506,10.33190993,165.1,165.04,20.0]
[1747521322706,10.33190993,165.11,165.04,20.0]
[1747521323009,31.52874455,165.12,165.04,20.0]
[1747521323800,31.52874455,165.12,165.04,26.05912205]
[1747521324629,31.52874455,165.12,165.04,27.27060545]
[1747521324630,16.38824068,165.12,165.04,27.27060545]
[1747521325207,16.38824068,165.12,165.04,20.0]
[1747521325413,31.52874455,165.12,165.04,20.0]
[1747521326519,31.52874455,165.12,165.04,26.05906126]
[1747521327143,21.19683462,165.12,165.04,26.05906126]
[1747521327328,6.05633075,165.12,165.04,26.05906126]
[1747521329032,6.05633075,165.12,165.05,1.21145767]
[1747521329955,6.05546808,165.14,165.06,6.058403]
[1747521331228,6.0547348,165.16,165.07,1.21130946]
[1747521332563,6.0547348,165.16,165.08,6.057669]
[1747521334435,6.0547348,165.16,165.09,1.21117882]
[1747521334635,6.0547348,165.16,165.1,19.96]
[1747521337969,6.0547348,165.16,165.11,1.21107641]
[1747521339648,6.05400169,165.18,165.11,7.26764383]
[1747521340384,6.05400169,165.18,165.11,6.05656742]
[1747521340555,16.38591162,165.18,165.1,26.01681628]
[1747521341081,6.05400169,165.18,165.1,26.01681628]
[1747521341256,10.33190993,165.17,165.11,19.96]
[1747521341458,10.33190993,165.16,165.11,19.96]
[1747521341673,6.05510142,165.15,165.11,19.96]
[1747521341974,10.33190993,165.12,165.03,26.01944248]
[1747521342177,10.33190993,165.09,165.03,26.01944248]
[1747521342879,6.05730207,165.09,165.03,26.01944248]
[1747521343050,6.05730207,165.09,165.03,27.23101535]
[1747521344481,10.33190993,165.11,165.03,27.23101535]
[1747521345684,21.19675202,165.12,165.03,27.23101535]
[1747521345853,6.05620155,165.12,165.03,27.23101535]
[1747521346788,6.05620155,165.12,165.03,42.37977618]
[1747521346970,6.05583479,165.13,165.03,42.37977618]
[1747521348196,10.33190993,165.13,165.03,27.23101535]
[1747521348990,31.52604822,165.14,165.03,27.23101535]
[1747521349172,21.19413829,165.14,165.03,27.23101535]
[1747521349376,31.52604822,165.14,165.03,27.23101535]
[1747521349989,21.19413829,165.14,165.03,42.37977618]
[1747521350791,10.33190993,165.13,165.03,42.37977618]
[1747521350963,10.33190993,165.13,165.03,27.23101535]
[1747521351991,31.52604822,165.14,165.03,27.23101535]
[1747521352396,21.19413829,165.14,165.03,27.23101535]
[1747521352573,31.52604822,165.14,165.04,19.94]
[1747521353095,31.52604822,165.14,165.05,6.05877006]
[1747521353592,16.38737801,165.14,165.06,19.94]
[1747521354964,16.38737801,165.14,165.07,6.05803598]
[1747521356576,6.05546808,165.14,165.07,6.05803598]
[1747521357804,6.05510142,165.15,165.08,8.1206]
[1747521358098,148.53190993,165.17,165.08,9.33179988]
[1747521358802,154.58661342,165.17,165.08,8.1206]
[1747521359401,154.58661342,165.17,165.09,6.05730207]
[1747521360800,6.05510142,165.15,165.09,6.05730207]
[1747521362907,6.0547348,165.16,165.09,6.05730207]
[1747521363099,16.38664473,165.16,165.09,6.05730207]
[1747521363305,6.0547348,165.16,165.09,6.05730207]
[1747521363464,16.38664473,165.16,165.09,6.05730207]
[1747521366309,10.33190993,165.14,165.08,14.17826296]
[1747521366471,6.0547348,165.16,165.09,1.21115297]
[1747521366676,6.05448854,165.17,165.09,1.21115297]
[1747521367403,38.58964886,165.2,165.11,26.0]
[1747521367404,19.94,165.2,165.11,26.0]
[1747521367604,6.05260449,165.22,165.12,22.79838849]
[1747521367785,5.81296103,165.23,165.13,18.64964886]
[1747521367986,4.20476103,165.23,165.16,26.0]
[1747521368618,4.20476103,165.23,165.17,6.05436822]
[1747521368994,6.0518534,165.24,165.17,6.05436822]
[1747521369188,6.0518534,165.24,165.18,19.92]
[1747521369414,164.19149398,165.25,165.18,19.92]
[1747521369708,144.25149398,165.25,165.18,19.92]
[1747521370100,154.58340391,165.25,165.18,19.92]
[1747521370687,169.71199695,165.25,165.18,19.92]
[1747521370887,159.38008702,165.25,165.18,19.92]
[1747521371196,169.71199695,165.25,165.18,19.92]
[1747521373992,31.51199695,165.25,165.18,19.92]
[1747521375623,10.33190993,165.24,165.18,19.92]
[1747521376720,44.64964886,165.24,165.14,1.21064726]
[1747521376930,10.33190993,165.21,165.14,19.92]
[1747521377223,10.33190993,165.21,165.12,72.9476]
[1747521377398,6.05326876,165.2,165.14,19.92]
[1747521378718,6.05326876,165.2,165.13,7.26633605]
[1747521378920,6.05326876,165.2,165.14,19.92]
[1747521379624,10.33190993,165.19,165.12,1.6476]
[1747521379818,10.33190993,165.19,165.09,5.54588856]
[1747521379819,10.33190993,165.16,165.1,19.92]
[1747521380014,10.33190993,165.16,165.09,30.33503226]
[1747521380236,31.5183506,165.2,165.1,19.92]
[1747521380397,10.33190993,165.15,165.1,19.92]
[1747521380727,10.33190993,165.14,165.1,19.92]
[1747521381304,10.33190993,165.14,165.09,4.33503226]
[1747521381497,10.33190993,165.15,165.09,4.33503226]
[1747521382118,10.33190993,165.15,165.08,53.53185574]
[1747521382501,18.64964886,165.17,165.08,53.53185574]
[1747521382702,10.33190993,165.15,165.08,53.53185574]
[1747521382911,10.33190993,165.15,165.09,9.49636728]
[1747521383713,6.05546808,165.14,165.09,9.49636728]
[1747521385634,6.05546808,165.14,165.08,47.4742]
[1747521386009,6.05400169,165.18,165.08,53.53176255]
[1747521386332,6.05400169,165.18,165.08,54.74299622]
[1747521386494,6.05358602,165.2,165.09,18.64964886]
[1747521386700,6.05358602,165.2,165.11,44.64964886]
[1747521386919,6.05358602,165.2,165.13,6.4748]
[1747521387113,19.9,165.23,165.14,21.11073273]
[1747521387300,30.23190993,165.23,165.14,21.11073273]
[1747521387620,10.33190993,165.23,165.14,21.11073273]
[1747521387925,6.05253601,165.22,165.15,6.05510142]
[1747521388230,6.05253601,165.22,165.15,7.58180142]
[1747521393119,6.05253601,165.22,165.15,1.5267]
[1747521394530,16.38444594,165.22,165.15,1.5267]
[1747521395740,31.51578597,165.22,165.15,1.5267]
[1747521396045,10.33190993,165.21,165.14,45.9]
[1747521396542,10.33190993,165.21,165.14,51.95545965]
[1747521396844,10.33190993,165.21,165.14,45.9]
[1747521398244,6.05326876,165.2,165.14,51.95534386]
[1747521399951,6.05290236,165.21,165.14,51.95534386]
[1747521400251,16.38481229,165.21,165.14,51.95534386]
[1747521400454,6.05290236,165.21,165.14,51.95534386]
[1747521400751,16.38481229,165.21,165.14,51.95534386]
[1747521401450,16.38481229,165.21,165.14,45.9]
[1747521402454,16.38481229,165.21,165.14,51.95546697]
[1747521402934,6.05290236,165.21,165.14,51.95546697]
[1747521405831,25.46324996,165.22,165.14,51.95546697]
[1747521406760,31.51578597,165.22,165.14,51.95546697]
[1747521407937,6.0521697,165.23,165.14,53.1662111]
[1747521408587,6.0521697,165.23,165.14,68.30488131]
[1747521409739,25.46132461,165.25,165.14,68.30488131]
[1747521409740,6.05180343,165.24,165.14,68.30488131]
[1747521409967,16.38371336,165.24,165.14,68.30488131]
[1747521410259,10.33190993,165.22,165.15,19.88]
[1747521411763,6.05290236,165.21,165.16,6.0547348]
[1747521412064,6.05290236,165.21,165.15,25.93495955]
[1747521413266,21.18085189,165.25,165.15,25.93495955]
[1747521413451,10.33190993,165.22,165.15,25.93495955]
[1747521414372,6.05290236,165.21,165.15,25.93495955]
[1747521415348,6.05253601,165.22,165.15,25.93495955]
[1747521415871,6.05253601,165.22,165.16,19.88]
[1747521416773,6.05253601,165.22,165.16,25.93467513]
[1747521417571,16.38444594,165.22,165.16,19.88]
[1747521417745,10.33190993,165.21,165.16,19.88]
[1747521417946,16.38444594,165.22,165.16,19.88]
[1747521418365,6.05253601,165.22,165.16,19.88]
[1747521418573,16.38444594,165.22,165.16,19.88]
[1747521419647,6.05253601,165.22,165.16,19.88]
[1747521419841,16.38444594,165.22,165.16,19.88]
[1747521421576,25.46248628,165.23,165.16,19.88]
[1747521422080,10.33190993,165.22,165.16,19.88]
[1747521424282,6.05290236,165.21,165.16,19.88]
[1747521425161,10.33190993,165.19,165.13,26.3348]
[1747521425375,10.33190993,165.2,165.13,26.3348]
[1747521425577,21.18515827,165.21,165.13,26.3348]
[1747521425578,6.05290236,165.21,165.13,32.39057329]
[1747521426375,6.05253601,165.22,165.13,32.39057329]
[1747521427578,6.05253601,165.22,165.14,1.21067534]
[1747521428883,6.05143721,165.25,165.17,1.5328]
[1747521429785,16.38334714,165.25,165.17,7.5870818]
[1747521430169,10.33190993,165.24,165.17,7.5870818]
[1747521430882,6.05143721,165.25,165.17,7.5870818]
[1747521431061,10.33190993,165.24,165.17,7.5870818]
[1747521431260,6.0521697,165.23,165.17,7.5870818]
[1747521433072,16.38334714,165.25,165.17,7.5870818]
[1747521440685,6.05143721,165.25,165.17,7.5870818]
[1747521440893,16.38334714,165.25,165.17,7.5870818]
[1747521442790,6.05143721,165.25,165.17,7.5870818]
[1747521443007,6.05143721,165.25,165.18,6.599]
[1747521443294,6.05143721,165.25,165.19,19.86]
[1747521444294,6.05107103,165.26,165.2,6.05326876]
[1747521447088,12.64902049,165.26,165.19,25.91349238]
[1747521447290,6.59794946,165.24,165.19,19.86]
[1747521448492,21.17874862,165.26,165.19,19.86]
[1747521448698,6.59794946,165.24,165.19,19.86]
[1747521449995,6.59794946,165.25,165.19,19.86]
[1747521450975,6.05180343,165.24,165.19,19.86]
[1747521454201,6.05180343,165.24,165.18,6.05397383]
[1747521455102,6.05180343,165.24,165.17,33.58704618]
[1747521455475,6.05180343,165.24,165.17,53.42704618]
[1747521455692,12.64975289,165.24,165.17,53.42704618]
[1747521455999,12.64975289,165.24,165.17,47.3728]
[1747521458479,12.64975289,165.24,165.17,53.42707169]
[1747521458680,6.05180343,165.24,165.17,53.42707169]
[1747521464991,12.64975289,165.24,165.17,53.42707169]
[1747521469702,6.05180343,165.24,165.17,53.42707169]
[1747521476022,6.05143721,165.25,165.17,53.42707169]
[1747521478527,26.0,165.28,165.17,69.77353618]
[1747521478731,32.59794946,165.28,165.18,6.1694]
[1747521478905,6.05082814,165.27,165.18,6.1694]
[1747521479222,32.05047999,165.28,165.18,6.1694]
[1747521480103,143.95942587,165.32,165.22,26.0]
[1747521480316,10.2828038,165.32,165.24,6.1694]
[1747521480499,4.23382587,165.32,165.25,6.05143721]
[1747521480900,4.23382587,165.32,165.25,7.2613716]
[1747521481314,4.23382587,165.32,165.26,1.5754]
[1747521482629,6.59794946,165.34,165.27,6.0507049]
[1747521482926,6.04850904,165.33,165.26,7.62639389]
[1747521484203,6.04814322,165.34,165.26,7.62639389]
[1747521486131,6.04777744,165.35,165.26,7.62639389]
[1747521486328,6.04777744,165.35,165.26,68.05407148]
[1747521486500,6.04777744,165.35,165.27,1.20969142]
[1747521487223,6.0474117,165.36,165.28,6.05033881]
[1747521487403,6.0474117,165.36,165.29,19.8]
[1747521488244,6.04716989,165.37,165.29,19.8]
[1747521488407,6.04716989,165.37,165.3,6.0183]
[1747521488607,6.0466354,165.39,165.31,28.76693261]
[1747521488939,6.0455837,165.41,165.33,26.0]
[1747521489150,6.04532909,165.42,165.35,26.0]
[1747521489459,6.0448528,165.43,165.36,25.84706596]
[1747521490233,5.97757009,165.43,165.36,25.84706596]
[1747521490431,6.04448742,165.44,165.36,25.84706596]
[1747521491529,6.04448742,165.44,165.36,33.0744403]
[1747521491853,6.04375679,165.46,165.37,1.5288]
[1747521492149,10.2876374,165.49,165.4,26.0]
[1747521492313,6.04302634,165.48,165.4,32.04562621]
[1747521492508,16.33066374,165.48,165.4,26.0]
[1747521492953,6.04302634,165.48,165.4,32.04585025]
[1747521494029,6.04302634,165.48,165.38,19.8]
[1747521494030,10.2876374,165.47,165.38,19.8]
[1747521494346,16.33066374,165.48,165.38,45.8]
[1747521495214,10.2876374,165.47,165.38,45.8]
[1747521495541,10.2876374,165.47,165.38,47.00893591]
[1747521495736,10.2876374,165.47,165.38,27.20893591]
[1747521495936,10.2876374,165.47,165.39,19.78]
[1747521496248,6.04375679,165.46,165.39,19.78]
[1747521497339,6.04375679,165.46,165.4,19.78]
[1747521497838,6.04302634,165.48,165.38,27.20893591]
[1747521498047,16.33066374,165.48,165.4,19.78]
[1747521498837,10.2876374,165.46,165.4,19.78]
[1747521500028,6.04412209,165.45,165.4,19.78]
[1747521501034,16.33175949,165.45,165.4,19.78]
[1747521501639,31.44206471,165.45,165.37,1.5288]
[1747521501829,31.44206471,165.45,165.38,19.78]
[1747521502031,21.15442731,165.45,165.38,19.78]
[1747521502947,21.15442731,165.45,165.37,7.57561139]
[1747521503152,21.15442731,165.45,165.38,19.76]
[1747521503452,15.11030522,165.45,165.38,25.80665631]
[1747521503653,15.11030522,165.45,165.38,19.76]
[1747521503951,15.11030522,165.45,165.38,25.80664885]
[1747521504140,15.11030522,165.45,165.38,19.76]
[1747521504336,25.39794262,165.45,165.38,19.76]
[1747521505037,15.11030522,165.45,165.38,19.76]
[1747521505360,25.39794262,165.45,165.38,19.76]
[1747521507759,31.44206471,165.45,165.38,19.76]
[1747521507931,21.15442731,165.45,165.38,19.76]
[1747521509251,21.15442731,165.45,165.37,1.5288]
[1747521509555,31.44206471,165.45,165.39,19.76]
[1747521511048,21.15442731,165.45,165.39,19.76]
[1747521513685,15.11030522,165.45,165.39,19.76]
[1747521513954,6.04339155,165.47,165.39,19.76]
[1747521514651,6.04339155,165.47,165.39,25.80619594]
[1747521515554,6.04302634,165.48,165.39,25.80619594]
[1747521518756,21.14948114,165.49,165.39,25.80619594]
[1747521518954,31.43711854,165.49,165.39,25.80619594]
[1747521519878,21.14948114,165.49,165.39,25.80619594]
[1747521520037,21.14948114,165.49,165.39,27.0150435]
[1747521520363,6.04266118,165.49,165.39,27.0150435]
[1747521520871,6.04266118,165.49,165.4,26.0]
[1747521521551,6.04266118,165.49,165.41,7.79701012]
[1747521521751,6.04266118,165.49,165.41,12.69556299]
[1747521522247,6.04229607,165.5,165.42,7.66341823]
[1747521527065,6.04229607,165.5,165.42,52.96341823]
[1747521527870,16.32883839,165.53,165.43,1.20852592]
[1747521528049,16.32883839,165.53,165.43,46.50852592]
[1747521528372,10.2876374,165.52,165.43,46.50852592]
[1747521529251,10.2876374,165.52,165.44,6.04448742]
[1747521529565,10.2876374,165.52,165.45,19.74]
[1747521530271,6.041931,165.51,165.45,19.74]
[1747521531666,12.62056521,165.51,165.45,19.74]
[1747521531864,27.72539271,165.51,165.45,19.74]
[1747521532368,6.041931,165.51,165.45,19.74]
[1747521535267,10.27947395,165.52,165.45,19.74]
[1747521537277,6.041931,165.51,165.45,19.74]
[1747521538378,31.42367741,165.53,165.45,19.74]
[1747521538969,10.27947395,165.52,165.45,19.74]
[1747521539479,6.041931,165.51,165.45,19.74]
[1747521544555,10.27947395,165.48,165.42,65.06]
[1747521544859,10.27947395,165.46,165.4,4.33503226]
[1747521545066,10.27947395,165.46,165.4,24.05503226]
[1747521545261,6.04412209,165.45,165.4,24.05503226]
[1747521545863,6.04339155,165.47,165.4,30.10086259]
[1747521546272,6.04339155,165.47,165.4,25.76583033]
[1747521546970,16.3228655,165.47,165.4,25.76583033]
[1747521547170,6.04339155,165.47,165.4,25.76583033]
[1747521547573,16.32213513,165.49,165.4,25.76583033]
[1747521547781,6.04266118,165.49,165.4,25.76583033]
[1747521548082,32.04205022,165.51,165.4,113.3894603]
[1747521548380,32.04205022,165.51,165.41,6.2472]
[1747521548577,6.04205022,165.51,165.41,6.2472]
[1747521549084,6.04205022,165.51,165.42,6.04521823]
[1747521549678,16.32152417,165.51,165.42,6.04521823]
[1747521550195,10.27947395,165.5,165.42,6.04521823]
[1747521550366,10.27947395,165.48,165.42,25.74521823]
[1747521551163,10.27947395,165.49,165.42,25.74521823]
[1747521551591,6.04302634,165.48,165.42,25.74521823]
[1747521555393,12.62413106,165.49,165.42,25.74521823]
[1747521556009,33.75221694,165.54,165.42,40.85826381]
[1747521556295,40.33368682,165.54,165.43,27.20886512]
[1747521557192,6.04120099,165.53,165.43,27.20886512]
[1747521557376,6.04120099,165.53,165.44,6.04448742]
[1747521559297,6.04120099,165.53,165.44,7.64838742]
[1747521560795,31.42203146,165.53,165.44,7.64838742]
[1747521560976,21.14420346,165.53,165.44,7.64838742]
[1747521564277,21.14420346,165.53,165.45,19.68]
[1747521564485,31.42203146,165.53,165.45,19.68]
[1747521564786,28.92747686,165.52,165.45,19.68]
[1747521565296,28.92747686,165.52,165.42,6.045141]
[1747521565297,10.277828,165.51,165.42,6.045141]
[1747521565801,10.277828,165.51,165.42,25.725141]
[1747521566778,6.04229607,165.5,165.42,25.725141]
[1747521567877,31.42586425,165.5,165.41,12.29270569]
[1747521568075,10.277828,165.49,165.42,19.68]
[1747521568283,31.42586425,165.5,165.42,19.68]
[1747521569000,31.42586425,165.5,165.42,25.72521631]
[1747521569488,10.277828,165.49,165.42,19.68]
[1747521569806,10.277828,165.49,165.41,6.2472]
[1747521569985,21.14803625,165.5,165.41,25.9272]
[1747521570193,18.64964886,165.49,165.41,31.97276839]
[1747521571078,6.04302634,165.48,165.41,31.97276839]
[1747521571477,6.04302634,165.48,165.41,6.2472]
[1747521571706,6.04302634,165.48,165.41,25.9272]
[1747521572596,6.04302634,165.48,165.41,31.97267528]
[1747521573507,6.04266539,165.49,165.41,31.97267528]
[1747521574210,6.04266539,165.49,165.42,19.68]
[1747521575114,6.04266539,165.49,165.42,25.72489422]
[1747521580421,6.04266539,165.49,165.42,19.68]
[1747521580602,16.32049339,165.49,165.42,19.68]
[1747521582029,6.04266539,165.49,165.42,19.68]
[1747521582515,6.04266539,165.49,165.42,25.72516383]
[1747521585326,12.62371436,165.5,165.42,25.72516383]
[1747521585630,27.72945454,165.5,165.42,19.68]
[1747521586724,25.23106715,165.49,165.42,19.68]
[1747521587021,25.23106715,165.49,165.41,6.2472]
[1747521587318,6.58141829,165.48,165.41,25.9072]
[1747521587524,6.04339155,165.47,165.41,25.9072]
[1747521587726,6.58141829,165.46,165.37,16.95313169]
[1747521588029,6.58141829,165.46,165.38,19.66]
[1747521588622,6.58141829,165.46,165.39,19.66]
[1747521589434,28.93808778,165.46,165.39,19.66]
[1747521589600,6.04412209,165.45,165.39,19.66]
[1747521590301,24.69354143,165.46,165.39,6.04631352]
[1747521590504,16.33190537,165.47,165.39,6.04631352]
[1747521591204,26.0,165.49,165.39,21.16210044]
[1747521591404,16.33073499,165.5,165.39,21.16210044]
[1747521591926,40.24406929,165.52,165.41,6.5712]
[1747521592101,23.91382587,165.52,165.41,77.8712]
[1747521592847,25.72156675,165.52,165.41,77.8712]
[1747521594127,25.72156675,165.52,165.42,21.15826381]
[1747521594802,10.28843892,165.5,165.42,6.04521823]
[1747521595124,10.28843892,165.49,165.43,19.66]
[1747521595820,6.04302634,165.48,165.43,19.66]
[1747521598929,6.04302634,165.48,165.42,19.66]
[1747521599522,6.04302634,165.48,165.42,25.70520159]
[1747521600333,6.04302634,165.48,165.42,19.66]
[1747521600920,6.04302634,165.48,165.42,25.70518976]
[1747521602040,6.04266118,165.49,165.42,25.70518976]
[1747521602627,26.0,165.51,165.42,25.70518976]
[1747521603764,25.72171165,165.52,165.42,66.81823534]
[1747521603949,19.68,165.52,165.42,66.81823534]
[1747521604110,19.68,165.52,165.42,68.02683229]
[1747521605042,25.72169876,165.52,165.42,68.02683229]
[1747521608145,6.04120099,165.53,165.42,113.32683229]
[1747521614238,6.04120099,165.53,165.43,1.5836]
[1747521615152,6.04120099,165.53,165.44,6.04448742]
[1747521617140,16.32963991,165.53,165.45,19.62]
[1747521618555,31.43264238,165.53,165.45,19.62]
[1747521618926,10.28843892,165.51,165.45,19.62]
[1747521620649,6.04229607,165.5,165.45,19.62]
[1747521624453,6.04229607,165.5,165.45,25.6640807]
[1747521624855,6.04156597,165.52,165.45,25.6640807]
[1747521626635,11.94053892,165.55,165.45,70.9640807]
[1747521626831,6.04047115,165.55,165.48,7.60392634]
[1747521627931,6.0401063,165.56,165.48,7.60392634]
[1747521629128,21.13989753,165.57,165.48,7.60392634]
[1747521629333,1.5965,165.59,165.48,7.60392634]
[1747521629334,6.03901201,165.59,165.49,1.20828465]
[1747521629734,6.03870357,165.6,165.51,26.0]
[1747521629938,6.03870357,165.6,165.52,39.22]
[1747521630146,6.03870357,165.6,165.53,6.064]
[1747521630843,6.03828271,165.61,165.54,6.04083605]
[1747521631055,10.27186071,165.62,165.55,1.66]
[1747521631256,4.23382587,165.62,165.55,1.66]
[1747521631759,10.27182396,165.62,165.55,1.66]
[1747521632344,4.23382587,165.62,165.55,1.66]
[1747521632572,6.03766737,165.63,165.55,1.66]
[1747521633057,6.03718908,165.64,165.56,6.0401063]
[1747521635176,6.03718908,165.64,165.55,7.70036268]
[1747521635370,6.03718908,165.64,165.56,39.2]
[1747521635881,6.03718908,165.64,165.56,19.6]
[1747521636046,31.41860071,165.64,165.57,19.6]
[1747521636252,31.41860071,165.64,165.58,19.6]
[1747521636474,10.28843892,165.63,165.58,19.6]
[1747521637276,6.03791812,165.62,165.58,19.6]
[1747521638273,6.03791812,165.62,165.57,19.6]
[1747521638573,31.42115235,165.62,165.56,19.6]
[1747521639281,15.09479531,165.62,165.56,19.6]
[1747521640281,15.09479531,165.62,165.55,1.66]
[1747521640454,15.09479531,165.62,165.56,19.58]
[1747521640772,25.38323423,165.62,165.56,19.58]
[1747521641396,31.42115235,165.62,165.56,19.58]
[1747521642579,21.13271343,165.62,165.56,19.58]
[1747521643474,31.42115235,165.62,165.55,1.66]
[1747521643785,10.28843892,165.6,165.54,19.58]
[1747521644160,10.28843892,165.6,165.53,6.064]
[1747521644362,10.28843892,165.58,165.51,21.103]
[1747521644570,10.28843892,165.58,165.52,19.58]
[1747521644752,20.21074886,165.61,165.51,21.103]
[1747521644753,10.28843892,165.59,165.51,1.503]
[1747521644957,20.21074886,165.61,165.52,19.58]
[1747521645778,6.03864734,165.6,165.52,25.62148493]
[1747521648187,16.32708626,165.6,165.52,19.58]
[1747521648812,31.42370461,165.6,165.52,19.58]
[1747521649980,31.42370461,165.6,165.51,1.503]
[1747521650186,10.28843892,165.55,165.49,6.5849]
[1747521650399,18.64964886,165.58,165.5,19.58]
[1747521650400,10.28843892,165.54,165.5,19.58]
[1747521650584,10.28843892,165.55,165.5,19.58]
[1747521651568,18.64964886,165.58,165.47,6.30040646]
[1747521651569,10.28843892,165.54,165.47,6.30040646]
[1747521651779,10.28843892,165.52,165.48,19.58]
[1747521651979,10.28843892,165.53,165.48,19.58]
[1747521652175,16.33000489,165.52,165.47,4.79720646]
[1747521652383,16.33000489,165.52,165.47,24.37720646]
[1747521653190,10.28843892,165.51,165.47,4.79720646]
[1747521654186,21.14803625,165.5,165.47,4.79720646]
[1747521654562,6.04229607,165.5,165.47,4.79720646]
[1747521655682,51.39206299,165.53,165.47,4.79720646]
[1747521655683,6.04156597,165.52,165.47,4.79720646]
[1747521662188,6.04083605,165.54,165.47,10.84037486]
[1747521662577,6.04083605,165.54,165.47,4.79720646]
[1747521663196,21.14292617,165.54,165.47,4.79720646]
[1747521663998,31.43136509,165.54,165.47,4.79720646]
[1747521664173,10.28843892,165.52,165.47,24.35720646]
[1747521665696,6.041931,165.51,165.47,24.35720646]
[1747521668805,15.10101844,165.56,165.47,30.40046511]
[1747521669107,41.10101844,165.56,165.47,30.40046511]
[1747521669791,6.04047115,165.55,165.47,30.40046511]
[1747521670109,10.28843892,165.52,165.47,4.79720646]
[1747521670482,26.0,165.53,165.47,4.79720646]
[1747521671810,10.28843892,165.52,165.47,4.79720646]
[1747521672186,6.041931,165.51,165.47,4.79720646]
[1747521674006,18.64964886,165.56,165.47,10.84043609]
[1747521674007,6.04083605,165.54,165.47,10.84043609]
[1747521674177,54.93808778,165.56,165.47,10.84043609]
[1747521674178,6.04047115,165.55,165.47,10.84043609]
[1747521675509,6.03974149,165.57,165.47,10.84043609]
[1747521675920,16.32818041,165.57,165.47,10.84043609]
[1747521677714,16.32818041,165.57,165.47,30.40043609]
[1747521679021,6.04047115,165.55,165.47,30.40043609]
[1747521680119,6.04047115,165.55,165.47,75.70043609]
[1747521684595,10.28843892,165.54,165.47,69.65720646]
[1747521684797,10.28843892,165.54,165.47,89.19720646]
[1747521685306,10.28843892,165.54,165.47,69.63720646]
[1747521686007,10.28843892,165.54,165.47,24.33720646]
[1747521686501,6.04120099,165.53,165.47,24.33720646]
[1747521690117,6.04120099,165.53,165.47,4.79720646]
[1747521690322,21.14420346,165.53,165.47,4.79720646]
[1747521693017,31.43264238,165.53,165.47,4.79720646]
[1747521694524,21.14420346,165.53,165.47,4.79720646]
[1747521695021,6.04120099,165.53,165.47,4.79720646]
[1747521695227,6.04120099,165.53,165.47,24.33720646]
[1747521695928,6.04120099,165.53,165.47,30.38058704]
[1747521696127,6.04083605,165.54,165.47,30.38058704]
[1747521696336,6.04083605,165.54,165.48,1.5133]
[1747521698034,6.04083605,165.54,165.47,30.38058704]
[1747521698748,16.32927497,165.54,165.47,30.38058704]
[1747521699038,16.32927497,165.54,165.47,24.33720646]
[1747521699410,31.43136509,165.54,165.47,4.79720646]
[1747521699830,10.28843892,165.53,165.47,4.79720646]
[1747521700639,10.28843892,165.52,165.47,4.79720646]
[1747521701007,6.041931,165.51,165.47,4.79720646]
[1747521710255,21.14552489,165.52,165.47,4.79720646]
[1747521714763,31.43396381,165.52,165.47,4.79720646]
[1747521715849,21.14552489,165.52,165.47,4.79720646]
[1747521716763,31.43396381,165.52,165.47,4.79720646]
[1747521717742,21.14552489,165.52,165.47,4.79720646]
[1747521719962,31.43396381,165.52,165.47,4.79720646]